Cogmind - Beta 14 @@@ ROGUE MODE // 2024.08.11 @ 23:12:18 Player: Lunace Result: Destroyed by JD-6O3(E) with Overtuned Barrage Gun Performance ------------- Evolutions (0) 0 Regions Visited (4) 800 Robots Destroyed (36) 180 Value Destroyed (1136) 1136 Prototype IDs (17) 340 Alien Tech Used (0) 0 Bonus (474) 474 TOTAL SCORE: 2930 Bonus ------- Follower Combat Kills 219 Registered with UFD 300 Friendly Fire -45 Cogmind --------- Core Integrity 0/250 Matter 113/300 Energy 6/100 System Corruption 0% Temperature Hot (213) Movement Rolling (115) Ox1 Location -7/Scraptown Parts ------- > --- POWER (1) -------- (None) > --- PROPULSION (2) --- Armored Huge Wheel > --- UTILITY (2) ------ Large Storage Unit Shield Generator > --- WEAPON (2) ------- Rocket Launcher Heavy Rocket Launcher > --- INVENTORY (15) --- Deep Structural Scanner Makeshift Light Armor Plating Gun Armor Tech Extrapolator Cobbler Unit Personal Teleporter v0.10 (0/15) Makeshift Laser Subdweller Beam Cannon Slug Cannon Rocket Launcher CPS Tube (2) Great Axe Vortex Trap Vortex Trap Peak State ------------ > --- POWER ------------ Improved Deuterium Engine > --- PROPULSION ------- Armored Huge Wheel > --- UTILITY ---------- Large Storage Unit Mapping Drone Bay > --- WEAPON ----------- Subdweller Beam Cannon Battle Cannon > --- INVENTORY -------- Spiked Treads Advanced Treads Makeshift Light Armor Plating Gun Armor Shield Generator Cobbler Unit Makeshift Laser Slug Cannon Rocket Launcher Rocket Launcher Heavy Rocket Launcher CPS Tube Great Axe [Rating: 27] Favorites ----------- Power Improved Deuterium Engine Engine Improved Deuterium Engine Propulsion Light Treads Treads Light Treads Wheel Armored Huge Wheel Utility Large Storage Unit Device Shield Generator Storage Large Storage Unit Weapon Battle Cannon Energy Gun Medium Laser Energy Cannon Subdweller Beam Cannon Ballistic Cannon Battle Cannon Launcher Rocket Launcher Build | -11 -10 -10 -7 -7 ------- Run | Yrd Mat Sub Rec Scr Slots Evolved . | . . . . . Power . | . . . . . Propulsion . | . . . . . Utility . | . . . . . Weapon . | . . . . . Parts Attached 37 | 8 3 12 5 9 Power 4 | 1 . 1 2 . Engine 4 | 1 . 1 2 . Core . | . . . . . Reactor . | . . . . . Propulsion 5 | 2 . 1 1 1 Treads 4 | 2 . 1 1 . Leg . | . . . . . Wheel 1 | . . . . 1 Hover . | . . . . . Flight . | . . . . . Utility 12 | 3 3 3 . 3 Device 9 | 2 2 3 . 2 Storage 3 | 1 1 . . 1 Processor . | . . . . . Hackware . | . . . . . Protection . | . . . . . Artifact . | . . . . . Weapon 16 | 2 . 7 2 5 Energy Gun 4 | 2 . 1 1 . Energy Cannon 2 | . . 1 . 1 Ballistic Gun . | . . . . . Ballistic Cannon 4 | . . 2 1 1 Launcher 6 | . . 3 . 3 Special Weapon . | . . . . . Impact Weapon . | . . . . . Slashing Weapon . | . . . . . Piercing Weapon . | . . . . . Special Melee Weapon . | . . . . . Unidentified Prototypes . | . . . . . Parts Lost 3 | . . 2 . 1 Power 1 | . . . . 1 Propulsion . | . . . . . Utility 1 | . . 1 . . Weapon 1 | . . 1 . . Highest Loss Streak 1 | . . 1 . 1 To Critical Strikes . | . . . . . Average Slot Usage (%) 95 | . 100 99 98 87 Engine 13 | . 14 14 14 13 Treads 19 | . 28 28 28 4 Wheel 4 | . . . . 11 Device 13 | . 14 14 14 13 Storage 14 | . 14 14 14 14 Energy Gun 6 | . 28 . 5 2 Energy Cannon 4 | . . 1 . 11 Ballistic Cannon 16 | . . 23 20 13 Peak Build Rating 27 | 7 9 17 22 27 Average Rating 17 | 6 7 14 19 24 On Entrance 10 | . 7 8 17 22 Naked Turns . | . . . . . Heaviest Build 47 | 15 31 40 42 47 Greatest Support 42 | 40 40 40 42 42 Greatest Overweight (x) 1 | 1 . . 1 1 Average Overweight (x) . | . . . . . Largest Inventory Capacity 15 | 8 15 15 15 15 Average Capacity 14 | 7 14 15 15 15 Most Carried 15 | 2 10 15 14 15 Average Carried 12 | 1 8 13 12 13 Final Capacity 15 | 8 15 15 15 15 Final Carried 15 | 2 10 11 13 15 Class Distribution -------------------- 51% | Commander-Mutant 48% | Mutant Dominant Class ---------------- Mutant | -10/Materials Mutant | -10/Subcaves Commander-Mutant | -7/Recycling Commander-Mutant | -7/Scraptown Resources | -11 -10 -10 -7 -7 ----------- Run | Yrd Mat Sub Rec Scr Matter Collected 1312 | 280 30 589 358 55 Remotely . | . . . . . Salvage Created 1285 | 145 230 260 351 299 Parts 68 | 13 7 21 9 18 Haulers Intercepted . | . . . . . Recyclers Shooed 1 | . . . 1 . Parts Field Recycled . | . . . . . Retrieved Matter . | . . . . . Parts Self-Destructed 8 | . . 8 . . Prevented . | . . . . . Kills | -11 -10 -10 -7 -7 ------- Run | Yrd Mat Sub Rec Scr Combat Hostiles Destroyed 26 | . 5 11 4 6 Guns 5 | . 5 . . . Cannons 10 | . . 6 4 . AOE 11 | . . 5 . 6 Classes Destroyed 12 | 2 1 5 1 3 Tunneler 4 | 4 . . . . Recycler 4 | 1 . . 3 . Turret 2 | . . 2 . . Swarmer 4 | . . 4 . . Grunt 8 | . 5 . 3 . Sentry 1 | . . 1 . . Programmer 1 | . . . 1 . Cobbler 2 | . . 2 . . Subdweller 6 | . . 6 . . Ranger 1 | . . . . 1 Scrapper 1 | . . . . 1 Elite 4 | . . . . 4 Best Kill Streak 6 | 2 3 6 4 6 Combat Bots Only 6 | . 3 4 4 6 Max Kills in Single Turn 3 | 1 1 3 1 3 Gunslinging . | . . . . . Exploded 3 | . . 3 . 3 Melee . | . . . . . Uniques/NPCs Destroyed . | . . . . . Combat | -11 -10 -10 -7 -7 -------- Run | Yrd Mat Sub Rec Scr Hostile Shots Fired 205 | . 24 102 33 46 Missed 70 | . 5 37 10 18 Damage Taken 1344 | . 204 634 210 296 Core 259 | . 53 62 60 84 Absorbed by Shields 437 | . . 250 85 102 Core Remaining (%) 100 | 100 . . . . Volleys Fired 131 | 13 13 71 22 12 Largest 2 | 2 2 2 2 2 Hottest 128 | 100 100 119 89 128 Shots Fired 221 | 26 26 108 40 21 Gun 62 | 26 26 6 4 . Cannon 138 | . . 91 36 11 Launcher 21 | . . 11 . 10 Special . | . . . . . Kinetic 126 | . . 85 36 5 Thermal 77 | 26 26 15 4 6 Explosive 18 | . . 8 . 10 Electromagnetic . | . . . . . Robot Hit Streak 14 | 4 10 14 10 4 Robot Miss Streak 4 | 2 2 3 4 4 Penetration Max . | . . . . . Secondary Targets 1 | . 1 . . . Max Gunslinging Chain 1 | . 1 . . . Shots Hit Robots 113 | 16 18 47 23 9 Core Hits 81 | 6 10 28 9 28 Critical Kills 1 | . . . 1 . Critical Parts Destroyed 2 | . . 1 . 1 Critical Strikes 7 | 1 1 2 2 1 Burn 2 | 1 1 . . . Destroy 4 | . . 2 1 1 Blast 1 | . . . 1 . Melee Attacks . | . . . . . Impact . | . . . . . Slashing . | . . . . . Piercing . | . . . . . Sneak Attacks . | . . . . . Combat Hostiles . | . . . . . Follow-up Attacks . | . . . . . Damage Inflicted 3733 | 196 223 1759 634 921 Guns 510 | 196 223 25 66 . Cannons 1722 | . . 1025 568 129 Explosions 1501 | . . 709 . 792 Melee . | . . . . . Ramming . | . . . . . Kinetic 1702 | . . 1089 568 45 Thermal 726 | 196 223 157 66 84 Explosive 1305 | . . 513 . 792 Electromagnetic . | . . . . . Impact . | . . . . . Slashing . | . . . . . Piercing . | . . . . . Highest Corruption . | . . . . . Average Corruption . | . . . . . Corruption Purged . | . . . . . Corruption Blocked . | . . . . . Overload Shots . | . . . . . Overflow Damage 96 | . . 13 50 33 Projectiles 53 | . . . 50 3 Explosions 43 | . . 13 . 30 Melee . | . . . . . Knockbacks 11 | . . 5 5 1 Impact . | . . . . . Kinetic 11 | . . 5 5 1 Secondary . | . . . . . Self-Inflicted Damage 76 | . . 36 . 40 Shots 2 | . . 1 . 1 Rammed . | . . . . . Targets Rammed . | . . . . . Kicked . | . . . . . Crushed . | . . . . . Highest Temperature 315 | 195 315 166 275 257 Average Temperature 107 | 77 158 62 86 133 Received Heat Transfer 622 | . 114 382 82 44 Effects 3 | . 1 . . 2 Interference 3 | . 1 . . 2 Siege Activations . | . . . . . Robots Corrupted . | . . . . . Combat Hostiles . | . . . . . Parts Fried . | . . . . . Impact Corruptions . | . . . . . Robots Melted . | . . . . . Combat Hostiles . | . . . . . Parts Melted 10 | 2 7 1 . . Heat Transferred 1942 | 666 740 259 148 129 Parts Sabotaged . | . . . . . Parts Stolen . | . . . . . Parts Stripped . | . . . . . Power Chain Reactions . | . . . . . Alert | -11 -10 -10 -7 -7 ------- Run | Yrd Mat Sub Rec Scr Peak Influence 218 | 25 140 . 218 . Initial 67 | . 16 . 67 . Average 72 | 10 55 . 92 . Maximum Alert Level 1 | . . . 1 . Low Security (%) 96 | 100 100 . 94 . Level 1 3 | . . . 5 . Level 2 . | . . . . . Level 3 . | . . . . . Level 4 . | . . . . . Level 5 . | . . . . . High Security . | . . . . . Max Security . | . . . . . Squads Dispatched 2 | . 2 . . . Investigation 1 | . 1 . . . Extermination . | . . . . . Reinforcement 1 | . 1 . . . Assault . | . . . . . Garrison . | . . . . . Intercept . | . . . . . Searches Triggered . | . . . . . Construction Impeded . | . . . . . Haulers Reinforced . | . . . . . Active Scanning Responses . | . . . . . Cargo Convoy Interrupts . | . . . . . Stealth | -11 -10 -10 -7 -7 --------- Run | Yrd Mat Sub Rec Scr Distress Signals . | . . . . . Communications Jammed . | . . . . . Distress Signals . | . . . . . Times Spotted 45 | . 7 14 6 18 Peak Tracking Total 12 | . 3 6 4 12 Tactical Retreats 1 | . . 1 . . Traps | -11 -10 -10 -7 -7 ------- Run | Yrd Mat Sub Rec Scr Traps Triggered 2 | . 1 1 . . Indirectly . | . . . . . Trap Hack Attempts . | . . . . . Triggered . | . . . . . Disarmed . | . . . . . Reprogrammed . | . . . . . Reused 1 | . . . . 1 Traps Extracted . | . . . . . Installed 1 | . . . . 1 Triggered . | . . . . . Most Traps Carried 3 | . . . . 3 Machines | -11 -10 -10 -7 -7 ---------- Run | Yrd Mat Sub Rec Scr Machines Disabled 13 | . . 4 1 8 Max in Single Turn 3 | . . 3 1 3 Machines Repaired . | . . . . . Machines Dismantled . | . . . . . Machines Sabotaged . | . . . . . Overloaded Fab Kills . | . . . . . Hacking | -11 -10 -10 -7 -7 --------- Run | Yrd Mat Sub Rec Scr Machines Accessed 20 | . 5 1 11 3 Terminals 8 | . 3 . 5 . Fabricators . | . . . . . Repair Stations . | . . . . . Recycling Units 8 | . 2 . 6 . Scanalyzers . | . . . . . Garrison Access . | . . . . . Total Hacks 42 | . 9 1 21 11 Successful 27 | . 3 1 12 11 Failed 15 | . 6 . 9 . Catastrophic 6 | . 2 . 4 . Database Lockouts . | . . . . . Manual 19 | . 7 . 12 . Terminals 15 | . 7 . 8 . Fabricators . | . . . . . Repair Stations . | . . . . . Recycling Units 15 | . 2 . 13 . Scanalyzers . | . . . . . Garrison Access . | . . . . . Terminal Hacks 12 | . . 1 . 11 Record 2 | . . . . 2 Robot Analysis 8 | . . . . 8 Derelict Proto ID Bank 2 | . . 1 . 1 Fabricator Hacks . | . . . . . Repair Station Hacks . | . . . . . Recycling Unit Hacks 6 | . 1 . 5 . Retrieve Components 6 | . 1 . 5 . Scanalyzer . | . . . . . Garrison Access Hacks . | . . . . . Unauthorized Hacks 9 | . 2 . 7 . Terminals 4 | . 2 . 2 . Botnet 4 | . 2 . 2 . Fabricators . | . . . . . Repair Stations . | . . . . . Recycling Units 5 | . . . 5 . Tunnel 5 | . . . 5 . Scanalyzers . | . . . . . Garrison Access . | . . . . . Data Cores Recovered . | . . . . . Used . | . . . . . Hacking Detections 13 | . 5 . 8 . Full Trace Events . | . . . . . Feedback Events . | . . . . . Feedback Blocked . | . . . . . Robot Schematics Acquired . | . . . . . Robots Built . | . . . . . Authchips . | . . . . . Time . | . . . . . Total Robot Build Rating . | . . . . . Part Schematics Acquired . | . . . . . Parts Built . | . . . . . Authchips . | . . . . . Time . | . . . . . Total Part Build Rating . | . . . . . Parts Repaired . | . . . . . Time . | . . . . . Parts Recycled . | . . . . . Recycled Matter . | . . . . . Retrieved Matter . | . . . . . Retrieved Components 8 | . 1 . 7 . Parts Scanalyzed . | . . . . . Part Schematics Acquired . | . . . . . Parts Damaged . | . . . . . Bothacking | -11 -10 -10 -7 -7 ------------ Run | Yrd Mat Sub Rec Scr Used RIF Installer . | . . . . . Robots Hacked . | . . . . . Non-combat . | . . . . . Combat . | . . . . . Robot Hacks Applied . | . . . . . Relay Couplers Released . | . . . . . Fabnet Peak Effective % . | . . . . . Robots Rewired 10 | . . . 10 . Allies Hacked . | . . . . . Hacks Repelled . | . . . . . Allies | -11 -10 -10 -7 -7 -------- Run | Yrd Mat Sub Rec Scr Total Allies 10 | . . . 10 . Largest Group 10 | . . . 10 8 Highest-Rated Group 237 | . . . 237 197 Highest-Rated Ally 40 | . . . 40 40 Total Orders 42 | . . . . 42 STAY 5 | . . . . 5 ROAM 3 | . . . . 3 FOLLOW 5 | . . . . 5 EXPLORE 16 | . . . . 16 RETURN 13 | . . . . 13 Ally Attacks 46 | . . . 14 32 Total Damage 1130 | . . . 502 628 Kills 12 | . . . 4 8 Allies Corrupted . | . . . . . Allies Melted . | . . . . . Intel | -11 -10 -10 -7 -7 ------- Run | Yrd Mat Sub Rec Scr Robot Analysis Total 8 | . . . . 8 Derelict Logs Recovered 2 | . . . . 2 Drone Launches 14 | . . . . 14 Drone Recoveries 13 | . . . . 13 Exploration | -11 -10 -10 -7 -7 ------------- Run | Yrd Mat Sub Rec Scr Turns Passed 6341 | 167 864 1870 1228 2212 Spaces Moved 3338 | 69 303 1026 588 1352 Core 4 | 4 . . . . Treads 2236 | 65 303 1026 588 254 Legs . | . . . . . Wheels 1098 | . . . . 1098 Hover . | . . . . . Flight . | . . . . . Fastest Speed 50 | 50 160 160 152 115 Average Speed 146 | 155 160 160 170 122 Slowest Speed 250 | 160 160 160 250 242 Overloaded Moves . | . . . . . Propulsion Burnouts . | . . . . . Robots Hopped . | . . . . . Cave-ins Triggered . | . . . . . Exploration Rate (%) 58 | 4 44 54 95 94 Regions Visited 4 Branch Regions 3 Pre-discovered Areas 6 | . . 1 5 . Known Exits Taken . | . . . . . Unknown Exits Taken 4 | 1 1 1 1 . Scrap Searched 8 | . . 4 . 4 Spaces Dug 5 | . . 3 2 . Terrain Destroyed 130 | . . 75 5 50 Melee . | . . . . . Projectile 11 | . . 6 5 . AOE 119 | . . 69 . 50 Terrain Rammed . | . . . . . Walls Destroyed . | . . . . . Machines Disabled . | . . . . . Actions | -11 -10 -10 -7 -7 --------- Run | Yrd Mat Sub Rec Scr Total 4571 | 99 656 1148 773 1895 Wait 871 | 8 326 17 19 501 Move 3334 | 68 302 1025 587 1352 Hop . | . . . . . Pick Up 30 | 2 9 8 1 10 Fast Attach 12 | 6 1 4 . 1 Attach 8 | 1 . 4 1 2 Detach 5 | . . 2 1 2 Swap 17 | 1 2 4 4 6 Drop 27 | . 3 13 3 8 Fire 131 | 13 13 71 22 12 Melee . | . . . . . Ram . | . . . . . Kick . | . . . . . Crush . | . . . . . Escape Stasis . | . . . . . Rewire 135 | . . . 135 . Trap 1 | . . . . 1 Miscellaneous . | . . . . . Route ------- -11/Scrapyard -10/Materials (discovered 2 exits: [*Mat] / *Sub) -10/Subcaves (discovered 2 exits: [*Mat] / *Rec) -7/Recycling (discovered 2 exits: [*Fac] / *Scr) -7/Scraptown (discovered 2 exits: [*Fac x2]) History --------- Turn | Location | Event 23 | -11/Scrapyard | Discovered new exit (range 15) 168 | -11/Scrapyard | Entered Materials 328 | -10/Materials | Build established: Mutant 613 | -10/Materials | Discovered new exit (range 4) 1025 | -10/Materials | Discovered new exit (range 5) 1032 | -10/Materials | Entered Subcaves 1034 | -10/Subcaves | Shifting Twisted Machinery released Mak. Flight Unit 1034 | -10/Subcaves | Shifting Twisted Machinery released Battle Cannon 1722 | -10/Subcaves | Discovered new exit (range 15) 1784 | -10/Subcaves | Visited 4L-MR0's lab 1798 | -10/Subcaves | Found Gun Armor 1851 | -10/Subcaves | Learned location of Zion (-7) 1851 | -10/Subcaves | Met a Zionite searching for "candidates" 1858 | -10/Subcaves | Disturbed a concealed Subdweller 1944 | -10/Subcaves | Shifting Twisted Machinery released Mak. Light Armor Plating 1968 | -10/Subcaves | Shifting Twisted Machinery released Spk. Treads 2877 | -10/Subcaves | Discovered new exit (range 16) 2902 | -10/Subcaves | Entered Recycling 2999 | -7/Recycling | Core integrity fell below 50% 3385 | -7/Recycling | Build established: Commander-Mutant 3523 | -7/Recycling | Discovered new exit (range 16) 4083 | -7/Recycling | Scanned before Scraplab entrance 4104 | -7/Recycling | Entered Scraplab 4116 | -7/Recycling | Discovered new exit (range 2) 4130 | -7/Recycling | Entered Scraptown 4130 | -7/Scraptown | Accompanied by 8 allies 4413 | -7/Scraptown | Discovered new exit (range 3) 4527 | -7/Scraptown | Scanned Subdweller tech in exchange for log data 4529 | -7/Scraptown | Learned 12 Research zone layouts 4562 | -7/Scraptown | Visited Awakened 4597 | -7/Scraptown | Visited Symbiants 4614 | -7/Scraptown | Visited Spacefarers 4696 | -7/Scraptown | Visited Shadow of the Wyrm 4715 | -7/Scraptown | Visited UFD Registry 4715 | -7/Scraptown | Registered with UFD as "Lasernuts" 4730 | -7/Scraptown | Visited CPS Storage 4757 | -7/Scraptown | Visited IN-MT5's Study 4803 | -7/Scraptown | Visited Scrapoid Research Area 4819 | -7/Scraptown | Visited LU-1G1's Boring Crew 4870 | -7/Scraptown | Delivered Scrap Shield to a Scientist 4996 | -7/Scraptown | Visited Analyses Database 5023 | -7/Scraptown | Visited Scrapoid Pod Storage 5098 | -7/Scraptown | Visited Scrap Suit Storage 5111 | -7/Scraptown | Visited Cartography Club 5154 | -7/Scraptown | Discovered new exit (range 10) 6112 | -7/Scraptown | Visited Science Guys 6214 | -7/Scraptown | Warned about trapping Scraptown 6275 | -7/Scraptown | Attacked by Scraptown defenders 6280 | -7/Scraptown | Found Personal Teleporter v0.10 6310 | -7/Scraptown | Found Deep Structural Scanner 6332 | -7/Scraptown | Core integrity fell below 20% 6342 | -7/Scraptown | Destroyed by JD-6O3(E) with Overtuned Barrage Gun Last Messages --------------- 06335_ CL-2FJ(x) sneak attacks. 06335_ Scavenger 4a destroyed. 06336_ Slug penetrates PM-J4Z(h). 06337_ Bolt penetrates Wall. 06337_ O0-6IY(E) destroyed. 06337_ Destroyed Mak. Targeting Computer. 06337_ PM-J4Z(h) destroyed. 06337_ Machine disabled. 06340_ SK-9V3(j): "This cycle just keeps getting worse." 06340_ The unstable cave ceiling collapses. 06340_ Angel 4b suffers critical hit (Destroy). 06340_ Angel 4b destroyed. 06340_ SK-9V3(j) destroyed. 06340_ ED-XOT(E) destroyed. 06340_ TI-RK2(E) destroyed. 06340_ Machine disabled. 06340_ Slug penetrates Machine. 06340_ Commando 4a suffers critical hit (Impale). Map ----- +----------------------------------------------------+ | ?##?#??????????????????#???#???#?????############# | | ?#??????????????????##??#?#?????????############## | | ?##??????????##???????#?#?##?#???#?##########"""## | | ???????#???#??#????????##??#####??###########" "## | | ?????????#?????"??????#""|##"""##### ####### < ## | | ##?###????????" ##""!##"" ##!!"#### ^ ###### ## | | ???#?????#????" # | | ???##???????# # | | ??##?????#??###?################### ########### | | ############?#?#?#?#####?#?######### ############ | | """"""""""#?########## ###?#?####### # # # # | | " #"""""""###""""""""" " ########### # ## # # ### | | # = " "###""" X "" ########### # # ##### | | #+# ["###"""" = ########### # # # # | | " "###"" " % % """""""""## ## #### ## # | | "###"" " " "## ## # ### | | """""###"" """ " """## ## #X#### | | "####### == * ="" """ " """## ## # #### ## | | """""### " "" = ""#" "## # # # | | [ = ### " "" ""#""" """## ###### #### | | ###" # E | | #?# "#"""""""" == % | | ###### ########### ########### [%!E ######### | | ###### ########### ##### !E%[ ######### | | ##"""" """""""""" % """" ![ ! "######## | | ##" %!%h ]@%= % ! "## #"""" | | ##" ===x=%%/= % %!! "## !! ! | | ##" ==%! !% "## | | ?#" %* ! "## | | ##" | | "" """""""""" """"""""""" ""x "## | | "" """""""""""""""""""""""""" "## !!!! | | "" ""###### ################"" "## #"""" | | "" ""# ###########"" "######## | | "" ""# X"##########"" "##"""""# | | "" ""# "" "" ###########"" "## "# | | "" ""# "" "" X"##########"" "## "# | | "" ""# " " ######### #"" "## "# | | ##" "" "" !"# | | ##" "" "" "## "# | | ##" ""# " " ######### #"" "## "# | | ""# "" "" ""##########"" "##"""" # | | ""# "" "" ###########"" "######## | | ""# ""##?#######"" "######## | | ""# ####?######"" "######## | | ""###### ################"" "######## | | """""""""""""""""""""""""""" "## """" | | """""""""""""""""""""""""""" " " | | "## X" | | "## " | +----------------------------------------------------+ Best States ------------- Heat Dissipation 25 Energy Generation 16 Energy Capacity 290 Matter Stores 300 Matter Capacity 300 Sight Range 16 Terrain Scan Density 10 Evasion (%) 40 Recoil Reduction 2 Item Schematics ----------------- None Robot Schematics ------------------ None Fabricated ------------ Nothing Alien Tech Used ----------------- None Achievements -------------- None Challenges ------------ None Game ------ Seed MagneticColdStabilizer Manual? 0 Play Time 00:41:26 Cumulative 298.6 hours Start 2024.08.11 @ 22:23:40 End 2024.08.11 @ 23:12:18 Sessions 1 Manual Loads 0 Difficulty Rogue Special Mode None Game No. 299 Rogue 294 Adventurer 5 Explorer 0 Win Type - Total 5 Types 4/0/0/1/0/0/0/0/0 Lore% 63 Gallery% 79 Achievement% 66 Wizard Run 0 Options --------- Layout 1 ASCII 0 Keyboard 0 Movement Arrows Keybinds 0 Fullscreen 1 Font 24/Terminus Map View 50x35 Zoom Use 0% Tactical HUD 1 Map Filters NONE Filters NONE Steam 1 RUN: c6c81b7c-7db1-448d-acbf-e9dd1d9973a6